fUSD/lending_fUSD_20240709
["ID","MTS","AMOUNT","RATE_DAILY","PERIOD"]
[331556623,1720499417236,1367.85944293,0.00011199,2]
[331556627,1720499433852,-156.08364642,0.000126,2]
[331556628,1720499433862,-1000.0,0.00012928,2]
[331556629,1720499433871,-198.8,0.0001299,2]
[331556630,1720499433880,-1054.99,0.0001299,2]
[331556631,1720499433889,-250.0,0.00013008,2]
[331556632,1720499433898,-168.01,0.0001306,2]
[331556633,1720499433907,-2910.61635358,0.00013128,2]
[331556634,1720499433919,-122.18521262,0.00013128,2]
[331556635,1720499433929,-424.35094832,0.00013128,2]
[331556636,1720499433940,-510.81173414,0.00013128,2]
[331556637,1720499433950,-1837.01890131,0.00013128,2]
[331556638,1720499433961,-364.77432763,0.00013128,2]
[331556639,1720499433971,-198.4,0.00013343,2]
[331556640,1720499433980,-253.47394318,0.00013516,2]
[331556641,1720499433990,-413.21120921,0.00013516,2]
[331556642,1720499433999,-1253.30119177,0.00013516,2]
[331556643,1720499434009,-854.69,0.00013541,2]
[331556644,1720499434018,-295.46908239,0.00013543,2]
[331556645,1720499434027,-350.93,0.00013555,2]
[331556646,1720499434036,-158.89677498,0.00013574,2]
[331556647,1720499434045,-156.76606447,0.00013574,2]
[331556648,1720499434055,-3199.58196313,0.00013574,2]
[331556649,1720499434064,-322.3178481,0.00013574,2]
[331556650,1720499434073,-216.67569474,0.00013574,2]
[331556651,1720499434083,-398.10231716,0.00013574,2]
[331556652,1720499434092,-155.0,0.00013574,2]
[331556653,1720499434101,-178.09,0.00013642,2]
[331556654,1720499434111,-250.0,0.00013699,2]
[331556655,1720499434120,-153.63,0.00013699,2]
[331556656,1720499434130,-197.73067875,0.00013849,2]
[331556657,1720499434139,-500.0,0.00013888,2]
[331556658,1720499434148,-326.21886683,0.00013899,2]
[331556659,1720499434157,-162.26611922,0.000139,2]
[331556660,1720499434167,-191.1125865,0.000139,2]
[331556661,1720499434177,-7500.0,0.000139,2]
[331556662,1720499434187,-1604.14463227,0.000139,2]
[331556663,1720499434196,-409.23229485,0.00013944,2]
[331556664,1720499434206,-1116.70195583,0.00013999,2]
[331556665,1720499434215,-500.0,0.00013999,2]
[331556666,1720499434224,-151.30068461,0.00013999,2]
[331556667,1720499434234,-191.76238194,0.00013999,2]
[331556668,1720499434243,-14948.9382169,0.00013999,2]
[331556669,1720499434255,-87092.43475726,0.00013999,2]
[331556670,1720499434266,-4051.00227482,0.00013999,2]
[331556671,1720499434278,-2000.0,0.00013999,2]
[331556672,1720499434289,-562.4996314,0.00013999,2]
[331556673,1720499434300,-664.57727663,0.00013999,2]
[331556674,1720499434312,-806.77598637,0.00013999,2]
[331556675,1720499434323,-5693.4346574,0.00013999,2]
[331556676,1720499434334,-464.2872024,0.00013999,2]
[331556677,1720499434345,-382.31751455,0.00013999,2]
[331556678,1720499434357,-2114.71810621,0.00013999,2]
[331556679,1720499434368,-937.31471298,0.00013999,2]
[331556720,1720499438563,-202.25757491,0.00013574,2]
[331556722,1720499438573,-3610.44818152,0.00013999,2]
[331556724,1720499438584,-1008.16876626,0.00013999,2]
[331556727,1720499438603,-350399.19427803,0.00013999,2]
[331556729,1720499438613,-414.3864109,0.00013999,2]
[331556731,1720499438623,-119980.04202768,0.00014,2]
[331556732,1720499438672,-374.94082365,0.00014,2]
[331556733,1720499438695,-3013.93374242,0.00014,2]
[331556734,1720499438706,-2833.75534537,0.00014,2]
[331556735,1720499438718,-5808.32989986,0.00014,2]
[331556736,1720499438782,-1699.42069628,0.00014,2]
[331556737,1720499438793,-785.92464769,0.00014,2]
[331556738,1720499438805,-782.62207443,0.00014,2]
[331556740,1720499438890,-712.24035346,0.00014,2]
[331556809,1720499440389,-765.064213,0.00014,2]
[331556810,1720499440402,-1226.66149548,0.00014,2]
[331556811,1720499440487,-55545.00000004,0.00014,2]
[331556812,1720499440499,-4547.08758781,0.00014,2]
[331556813,1720499440511,-3604.54927796,0.00014,2]
[331556814,1720499440523,-800.13778109,0.00014,2]
[331556815,1720499440542,-6584.77830081,0.00014,2]
[331556816,1720499440563,-64933.76788165,0.00014,2]
[331556817,1720499440694,-1197.8095201,0.00014,2]
[331556818,1720499440706,-3613.36854565,0.00014,2]
[331556819,1720499440719,-583.2607277,0.00014,2]
[331556820,1720499440761,-495.55389865,0.00014,2]
[331556821,1720499440796,-519.73379976,0.00014,2]
[331556822,1720499440809,-1751.0,0.00014,2]
[331556823,1720499440838,-1312.16685292,0.00014,2]
[331556867,1720499443481,-20000.39273203,0.00014,2]
[331556874,1720499443545,-11462.42947512,0.00014,2]
[331556875,1720499444047,-489.98199999,0.00014,2]
[331556876,1720499444992,-2415.26216506,0.00014,2]
[331556877,1720499445012,-668.06889936,0.00014,2]
[331556889,1720499446050,-257634.02771095,0.00014,2]
[331556890,1720499446061,-902.31682698,0.00014,2]
[331556891,1720499446089,-513.18500005,0.00014,2]
[331556900,1720499447273,-1059.70263377,0.00014,2]
[331556901,1720499447290,-14346.13181591,0.00014,2]
[331556902,1720499447309,-1115.93875031,0.00014,2]
[331556903,1720499618898,3091.32987252,0.00011199,2]
[331556904,1720499639890,204483.33383835,0.00011199,2]
[331556905,1720499642851,155.18786406,0.00011199,2]
[331556906,1720499645137,5029.9590737,0.00011199,2]
[331556907,1720499650099,182.71710904,0.00011199,2]
[331556908,1720499650163,555.24017418,0.00011199,2]
[331556909,1720499652262,185.44657418,0.00011199,2]
[331556910,1720499661651,430.64178186,0.00011199,2]
[331556912,1720499685791,1267.83374125,0.00011199,2]
[331556913,1720499694299,1287.48512797,0.00011199,2]
[331556914,1720499709183,1396.2044465,0.00011199,2]
[331556915,1720499740453,637.29206481,0.00011199,2]
[331556916,1720499790975,651.44479338,0.00011199,2]
[331556917,1720499798942,155.89259499,0.00011199,2]
[331556918,1720499823766,155.0,0.00011199,2]
[331556920,1720499861883,281.86793327,0.00011199,2]
[331556921,1720499885856,206.52599146,0.00011199,2]
[331556922,1720500017165,938.79228308,0.00011199,2]
[331556923,1720500040906,500.24532185,0.00025,60]
[331556924,1720500053652,1215.0,0.00025,60]
[331556925,1720500069198,410.59,0.00010639,2]
[331556926,1720500110027,155.0,0.00011199,2]
[331556927,1720500236788,515.53256639,0.00011199,2]
[331556928,1720500260880,194.19791912,0.00011199,2]
[331556929,1720500402320,155.0,0.00011199,2]
[331556930,1720500419707,297.78410169,0.00011199,2]
[331556932,1720500468949,7528.14941957,0.00011199,2]
[331556934,1720500506076,2737.79461804,0.00011199,2]
[331556935,1720500553988,155.0,0.00011199,2]
[331556936,1720500561050,1458.35370028,0.00011199,2]
[331556938,1720500586654,420.66,0.00010307,2]
[331556950,1720500601326,13743.47751699,0.00011199,2]
[331556951,1720500611362,1253.30119177,0.00011199,2]
[331556953,1720500631699,-306.20467746,0.00012,2]
[331556956,1720500632904,-193.79532254,0.00012,2]
[331556958,1720500632914,-201.7130477,0.00012001,2]
[331556959,1720500632925,-159.09090106,0.00012101,2]
[331556963,1720500632936,-504.23385468,0.00012302,2]
[331556967,1720500632947,-2196.25724402,0.00012314,2]
[331556971,1720500632961,-710.27227374,0.00012314,2]
[331556974,1720500632974,-335.08950845,0.00012314,2]
[331556977,1720500632987,-276.52,0.00012314,2]
[331556980,1720500633000,-7309.13213666,0.00012314,2]
[331556982,1720500633010,-176.33917765,0.00012314,2]
[331556983,1720500633020,-196.53318267,0.00012314,2]
[331556984,1720500633030,-632.54,0.0001235,2]
[331556985,1720500633041,-250.0,0.00012354,2]
[331556986,1720500633051,-151.88,0.00012355,2]
[331556987,1720500633062,-2047.27,0.00012405,2]
[331556988,1720500633073,-1000.0,0.00012431,2]
[331556989,1720500633083,-250.0,0.00012483,2]
[331556990,1720500633092,-151.88,0.00012483,2]
[331556991,1720500633104,-23890.0,0.0001249,2]
[331556992,1720500633119,-420.66,0.00012571,2]
[331556993,1720500633129,-150.0,0.000126,2]
[331556994,1720500633138,-151.88,0.00012612,2]
[331556995,1720500633149,-151.88,0.00012741,2]
[331556996,1720500633159,-607.26,0.00012848,2]
[331556997,1720500633169,-151.88,0.0001287,2]
[331556998,1720500633179,-1664.33,0.00012901,2]
[331556999,1720500633191,-150.99,0.00012901,2]
[331557000,1720500633201,-571.37,0.00012901,2]
[331557001,1720500633210,-151.88,0.00012999,2]
[331557002,1720500633220,-179.99,0.00013028,2]
[331557003,1720500633229,-155.71728966,0.00013128,2]
[331557004,1720500633240,-200.0,0.00013217,2]
[331557005,1720500633250,-8660.0,0.00013333,2]
[331557006,1720500633260,-2241.8448,0.00013474,2]
[331557007,1720500633270,-11889.9052,0.00013474,2]
[331557008,1720500633280,-202.35307835,0.00013516,2]
[331557009,1720500633290,-295.27845213,0.00013516,2]
[331557010,1720500633300,-418.69423691,0.00013516,2]
[331557011,1720500633310,-155.44282923,0.00013543,2]
[331557012,1720500633320,-158.85720003,0.00013543,2]
[331557013,1720500633330,-155.0,0.00013574,2]
[331557014,1720500633340,-9431.98960081,0.00013574,2]
[331557015,1720500633355,-1372.07195307,0.00013574,2]
[331557016,1720500633364,-250.0,0.00013699,2]
[331557017,1720500633374,-250.59,0.00013699,2]
[331557018,1720500633383,-179.6053,0.0001378,2]
[331557019,1720500633393,-32745.447137,0.0001378,2]
[331557020,1720500633406,-4475.52028849,0.0001378,2]
[331557021,1720500633418,-337.01913656,0.0001378,2]
[331557022,1720500633430,-472.14322502,0.0001378,2]
[331557023,1720500633442,-14505.20025256,0.0001378,2]
[331557024,1720500633454,-512.68375521,0.0001378,2]
[331557025,1720500633466,-711.72882134,0.0001378,2]
[331557026,1720500633478,-5506.62554695,0.0001378,2]
[331557027,1720500633490,-9144.07795094,0.0001378,2]
[331557028,1720500633501,-6459.89538593,0.0001378,2]
[331557029,1720500633510,-1206.2283,0.0001378,2]
[331557030,1720500633520,-163.86089958,0.0001378,2]
[331557031,1720500633530,-172.86534047,0.0001378,2]
[331557032,1720500633539,-326.21886683,0.0001378,2]
[331557033,1720500633549,-8217.15027748,0.00013799,2]
[331557034,1720500633561,-2722.04110642,0.00013799,2]
[331557035,1720500633573,-2697.05711625,0.00013799,2]
[331557036,1720500633586,-389.84087267,0.00013799,2]
[331557037,1720500633602,-299.6900001,0.00013799,2]
[331557038,1720500633613,-455.85444,0.00013799,2]
[331557039,1720500633625,-748.65194149,0.00013799,2]
[331557040,1720500633638,-298.96499867,0.00013799,2]
[331557041,1720500633649,-2559.38,0.00013799,2]
[331557042,1720500633661,-432.000004,0.00013799,2]
[331557049,1720500637674,-1662.12038026,0.00013799,2]
[331557050,1720500637685,-251.9475,0.00013799,2]
[331557051,1720500637697,-399.08923112,0.00013799,2]
[331557052,1720500637788,-507.30732752,0.00013799,2]
[331557053,1720500637799,-2632.26740081,0.00013799,2]
[331557054,1720500637846,-4911.98410321,0.00013799,2]
[331557055,1720500637856,-327.8808,0.00013799,2]
[331557056,1720500637872,-196.47150102,0.000138,2]
[331557057,1720500637888,-7303.52849898,0.000138,2]
[331557058,1720500637898,-196.98474805,0.0001387,2]
[331557059,1720500637908,-686635.49876666,0.0001388,2]
[331557061,1720500637920,-6373.72779736,0.0001388,2]
[331557227,1720500639607,-409.15439696,0.0001388,2]
[331557230,1720500639620,-83361.66552871,0.0001388,2]
[331557246,1720500639720,-8964.01650804,0.0001388,2]
[331557249,1720500639733,-499.9996419,0.0001388,2]
[331557260,1720500639785,-1661.43,0.0001388,2]
[331557274,1720500639902,-166406.5756025,0.0001388,2]
[331557276,1720500639912,-416.66667,0.0001388,2]
[331557278,1720500639923,-200.0,0.00013888,2]
[331557280,1720500639933,-174.77665019,0.00013889,2]
[331557282,1720500639944,-529.47452032,0.00013889,2]
[331557284,1720500639954,-220.42,0.0001389,3]
[331557286,1720500639964,-484.23366736,0.00013898,2]
[331557288,1720500639974,-286.5879,0.00013899,2]
[331557290,1720500639984,-3488.21864774,0.00013899,2]
[331557292,1720500639997,-36006.06765226,0.00013899,2]
[331557294,1720500640008,-184.0405,0.00013899,2]
[331557296,1720500640019,-34074.13876363,0.00013899,2]
[331557381,1720500642672,-1025.25340289,0.00011901,2]
[331557382,1720500642686,-660.19,0.00011901,2]
[331557383,1720500642698,-1306.13859631,0.00011901,2]
[331557384,1720500642708,-777.9548367,0.00013899,2]
[331557385,1720500643693,-36203.33999967,0.00013899,2]
[331557386,1720500643703,-781.7889,0.00013899,2]
[331557387,1720500643712,-1400.2878,0.00013899,2]
[331557388,1720500643722,-685.36886605,0.00013899,2]
[331557389,1720500643732,-685.36886605,0.00013899,2]
[331557390,1720500643742,-805.8684,0.000139,2]
[331557391,1720500643751,-7955.5787,0.000139,2]
[331557392,1720500643761,-162.26611918,0.000139,2]
[331557393,1720500643770,-1000.0,0.000139,2]
[331557394,1720500643780,-1401.4409,0.000139,2]
[331557395,1720500643789,-163.86089958,0.000139,2]
[331557396,1720500643798,-1231.40590138,0.000139,2]
[331557397,1720500643807,-417.93936495,0.00013938,2]
[331557398,1720500643816,-416.66667,0.0001396,2]
[331557399,1720500643826,-1000.0,0.00013985,2]
[331557400,1720500643835,-196.98474805,0.0001399,2]
[331557401,1720500643846,-652.52,0.0001399,3]
[331557402,1720500643856,-181.52155116,0.00013999,2]
[331557403,1720500643865,-5927.88762708,0.00013999,2]
[331557404,1720500643874,-155.27484753,0.00013999,2]
[331557405,1720500643884,-1318234.68643678,0.00014,2]
[331557406,1720500643896,-5925.51205195,0.00014,2]
[331557407,1720500643908,-9013.5259233,0.00014,2]
[331557408,1720500643919,-236535.92349771,0.00014,2]
[331557409,1720500643931,-10713.66373214,0.00014,2]
[331557410,1720500643947,-14566.77179293,0.00014,2]
[331557411,1720500643959,-292.35005528,0.00014,2]
[331557412,1720500643970,-383.21057778,0.00014,2]
[331557413,1720500643986,-295.24352,0.00014,2]
[331557421,1720500645675,-295.46908239,0.00013574,2]
[331557422,1720500645684,-81.81091761,0.00013999,2]
[331557423,1720500645696,-265.41495866,0.00013999,2]
[331557424,1720500645705,-405.08504134,0.00014,2]
[331557425,1720500645732,-1058.18632061,0.00014,2]
[331557426,1720500646371,-384.50318454,0.00014,2]
[331557427,1720500646382,-26788.25325092,0.00014,2]
[331557428,1720500646395,-1570.1956358,0.00014,2]
[331557429,1720500646410,-11061.3,0.00014,2]
[331557434,1720500769949,22843.49458259,0.00011199,2]
[331557435,1720500785456,3107.94822691,0.00011199,2]
[331557436,1720500927698,1105.93757883,0.00011199,2]
[331557437,1720500938055,1141.03835494,0.00011199,2]
[331557438,1720500972958,627.04,0.00010959,2]
[331557439,1720500991476,631.03123115,0.00011199,2]
[331557440,1720501007656,175.71287562,0.00011199,2]
[331557441,1720501011514,5180.96665376,0.00011199,2]
[331557442,1720501033517,155.78274909,0.00011199,2]
[331557443,1720501050520,160.38300351,0.00011199,2]
[331557444,1720501062054,356.42240482,0.00011199,2]
[331557445,1720501064774,157.00939588,0.00011199,2]
[331557446,1720501084958,266.43574909,0.00011199,2]
[331557447,1720501094886,155.52925997,0.00011199,2]
[331557448,1720501097819,155.30311994,0.00011199,2]
[331557449,1720501100257,155.0,0.00011199,2]
[331557450,1720501102035,444.74492769,0.00011199,2]
[331557451,1720501104768,196.53318267,0.00011199,2]
[331557452,1720501111095,388.50681923,0.00011199,2]
[331557453,1720501147678,370.00600628,0.00011199,2]
[331557454,1720501162036,533.90157478,0.00011199,2]
[331557455,1720501170869,280.0,0.00013,15]
[331557456,1720501188345,299.08,0.00027,120]
[331557457,1720501197907,451.8111894,0.00012,15]
[331557458,1720501211370,260.89225435,0.00011199,2]
[331557459,1720501215331,1302.86269743,0.00011199,2]
[331557460,1720501225163,440.71,9.837e-05,2]
[331557461,1720501252901,-250.0,0.00011662,2]
[331557462,1720501252925,-151.39412324,0.00011735,2]
[331557463,1720501252948,-500.0,0.00011754,2]
[331557464,1720501252971,-741.53,0.00011803,2]
[331557465,1720501252996,-161.32,0.00011834,2]
[331557466,1720501253024,-1503.05108454,0.0001189,2]
[331557467,1720501253049,-161.32,0.0001189,2]
[331557468,1720501253073,-161.32,0.00011947,2]
[331557469,1720501276735,-161.32,0.00012003,2]
[331557470,1720501276759,-161.32,0.00012059,2]
[331557471,1720501276782,-440.71,0.00012101,2]
[331557472,1720501276807,-161.32,0.00012115,2]
[331557473,1720501276834,-161.32,0.00012171,2]
[331557474,1720501276859,-161.32,0.00012227,2]
[331557475,1720501276881,-161.32,0.00012283,2]
[331557476,1720501276904,-155.37169574,0.00012314,2]
[331557477,1720501276925,-251.5542779,0.00012314,2]
[331557478,1720501276954,-161.32,0.00012339,2]
[331557479,1720501276979,-161.32,0.00012395,2]
[331557480,1720501277001,-3793.42,0.00012448,2]
[331557481,1720501277023,-300.0,0.00012451,2]
[331557482,1720501277047,-138.44881858,0.00012451,2]
[331557483,1720501278102,1225.23109125,0.00011199,2]
[331557484,1720501306719,-22.87118142,0.00012451,2]
[331557485,1720501306743,-177.12881858,0.00012452,2]
[331557487,1720501497861,369.22014556,0.00011199,2]
[331557488,1720501509973,176.22964096,0.00011199,2]
[331557489,1720501514075,1500.0,0.00011199,2]
[331557490,1720501514611,296.7481435,0.00011199,2]
[331557491,1720501528199,1538.3807366,0.00027,120]
[331557496,1720501583427,703.12342522,0.00011199,2]
[331557516,1720501821728,396.63,9.858e-05,2]
[331557525,1720501831752,-642.3977412,0.00011694,2]
[331557531,1720501832778,-584.8522588,0.00011694,2]
[331557532,1720501832790,-150.0,0.00011712,2]
[331557533,1720501832800,-4131.76128922,0.00011713,2]
[331557534,1720501832813,-2214.87829178,0.00011713,2]
[331557535,1720501832826,-456.76620795,0.00011713,2]
[331557536,1720501832840,-956.69375819,0.00011713,2]
[331557537,1720501832854,-1074.32,0.00011713,2]
[331557538,1720501832866,-542.70216,0.00011713,2]
[331557539,1720501832879,-2174.47,0.00011713,2]
[331557540,1720501832892,-11347.50135339,0.00011713,2]
[331557541,1720501832905,-397.56791311,0.00011713,2]
[331557542,1720501832918,-593.33902636,0.00011713,2]
[331557543,1720501832928,-159.09090106,0.0001176,2]
[331557544,1720501832938,-200.0,0.0001176,2]
[331557545,1720501832950,-375.79,0.0001177,2]
[331557546,1720501832959,-250.0,0.00011783,2]
[331557547,1720501832971,-200.0,0.00011784,2]
[331557548,1720501832980,-600.0,0.00011788,2]
[331557549,1720501832990,-3528.33,0.000118,2]
[331557550,1720501832999,-2017.05,0.0001186,2]
[331557551,1720501833010,-396.63,0.00012122,2]
[331557552,1720501833020,-2144.5360235,0.00012273,2]
[331557553,1720501833030,-3616.29118142,0.00012452,2]
[331557554,1720501833039,-499.99,0.00012452,2]
[331557555,1720501833049,-1483.95286765,0.00012455,2]
[331557556,1720501833060,-302.11780374,0.00012455,2]
[331557557,1720501833072,-997.8724334,0.00012455,2]
[331557558,1720501833083,-1009.47689521,0.00012455,2]
[331557559,1720501833093,-642.17310479,0.00012458,2]
[331557560,1720501833104,-3151.24689521,0.00012458,2]
[331557561,1720501833114,-3793.42,0.00012462,2]
[331557562,1720501833123,-2100.18178145,0.00012465,2]
[331557563,1720501833134,-1629.4257306,0.00012465,2]
[331557564,1720501833146,-63.81248795,0.00012465,2]
[331557565,1720501833155,-3793.42,0.00012468,2]
[331557566,1720501833164,-627.39,0.00012468,2]
[331557567,1720501833173,-981.47751205,0.00012471,2]
[331557568,1720501833184,-935.25814264,0.00012471,2]
[331557569,1720501833195,-1876.68434531,0.00012471,2]
[331557570,1720501833205,-2593.76013506,0.00012475,2]
[331557572,1720501837803,-659.75132017,0.00012475,2]
[331557573,1720501837915,-539.90854477,0.00012475,2]
[331557574,1720501837926,-3793.42,0.00012478,2]
[331557575,1720501837935,-3793.42,0.00012481,2]
[331557576,1720501837945,-3793.42,0.00012485,2]
[331557577,1720501837955,-3793.42,0.00012488,2]
[331557578,1720501837965,-3793.42,0.00012491,2]
[331557579,1720501837975,-3793.42,0.00012494,2]
[331557580,1720501837992,-3793.42,0.00012498,2]
[331557581,1720501838002,-2074.42553066,0.00012501,2]
[331557582,1720501838015,-1718.99446934,0.00012501,2]
[331557583,1720501838025,-3793.42,0.00012504,2]
[331557584,1720501838035,-3793.42,0.00012508,2]
[331557585,1720501838045,-3793.42,0.00012511,2]
[331557586,1720501838055,-150.0,0.000126,2]
[331557587,1720501838064,-173.84,0.00012676,2]
[331557588,1720501838074,-651.4455,0.00012774,2]
[331557589,1720501838083,-255.0,0.00012778,2]
[331557590,1720501838093,-400.0,0.00012853,2]
[331557591,1720501838103,-184.41,0.00012874,2]
[331557592,1720501838112,-173.48,0.00013105,2]
[331557593,1720501838122,-600.0,0.00013261,2]
[331557594,1720501838132,-200.0,0.000133,4]
[331557595,1720501838142,-500.0,0.000134,4]
[331557596,1720501838153,-155.0,0.00013472,2]
[331557597,1720501838164,-155.0,0.00013472,2]
[331557599,1720501838175,-1399.54620502,0.00013472,2]
[331557601,1720501838185,-788.8187,0.00013474,2]
[331557603,1720501838196,-1000.0,0.00013474,2]
[331557605,1720501838207,-2018.40385,0.000135,2]
[331557607,1720501838218,-800.0,0.000135,4]
[331557609,1720501838236,-1261.10470397,0.00013516,2]
[331557611,1720501838247,-245.38445087,0.00013516,2]
[331557613,1720501838258,-788.74652378,0.00013516,2]
[331557615,1720501838269,-256.09559848,0.00013574,2]
[331557617,1720501838280,-1100.0,0.000136,4]
[331557619,1720501838292,-250.0,0.00013699,2]
[331557621,1720501838303,-520.88,0.00013699,2]
[331557623,1720501838314,-1000.0,0.00013699,2]
[331557625,1720501838324,-403.0244,0.00013699,2]
[331557627,1720501838335,-36325.11493285,0.00013699,2]
[331557630,1720501838351,-5512.85800056,0.00013699,2]
[331557632,1720501838364,-11287.88232983,0.00013699,2]
[331557634,1720501838376,-258.02513641,0.00013699,2]
[331557636,1720501838389,-46616.11960035,0.00013699,2]
[331557638,1720501838398,-1400.0,0.000137,5]
[331557640,1720501838408,-409.23229485,0.00013707,2]
[331557642,1720501838418,-441.0608071,0.00013736,2]
[331557645,1720501838428,-155.532,0.00013746,2]
[331557647,1720501838442,-155.532,0.00013746,2]
[331557649,1720501838452,-155.532,0.00013746,2]
[331557651,1720501838461,-155.532,0.00013746,2]
[331557653,1720501838471,-155.532,0.00013746,2]
[331557655,1720501838487,-155.532,0.00013746,2]
[331557657,1720501838498,-155.532,0.00013746,2]
[331557659,1720501838508,-155.532,0.00013746,2]
[331557661,1720501838518,-155.532,0.00013746,2]
[331557664,1720501838531,-466.41571341,0.0001379,2]
[331557666,1720501838541,-170.6600423,0.00013799,2]
[331557668,1720501838551,-378.3831,0.000138,2]
[331557670,1720501838560,-200.0,0.000138,5]
[331557672,1720501838570,-4025.20104722,0.00013802,2]
[331557674,1720501838580,-832.18066341,0.00013849,2]
[331557676,1720501838590,-153.44224,0.0001386,2]
[331557678,1720501838602,-2277.77777,0.0001386,2]
[331557680,1720501838612,-500.0,0.00013888,2]
[331557682,1720501838622,-200.0,0.00013888,2]
[331557684,1720501838632,-527.36310335,0.00013889,2]
[331557686,1720501838643,-156.62970523,0.00013899,2]
[331557688,1720501838652,-647.71813835,0.00013899,2]
[331557690,1720501838662,-474.9799257,0.00013899,2]
[331557692,1720501838672,-170.6600423,0.000139,2]
[331557694,1720501838682,-169349.2904,0.000139,2]
[331557696,1720501838692,-354.4574,0.000139,2]
[331557698,1720501838702,-1435.0078,0.000139,2]
[331557700,1720501838712,-162.26611918,0.000139,2]
[331557702,1720501838721,-200.0,0.000139,5]
[331557704,1720501838735,-7500.0,0.000139,2]
[331557709,1720501838768,-433.0,0.00013937,2]
[331557711,1720501838778,-151.11,0.0001397,7]
[331557713,1720501838788,-150.5,0.0001398,7]
[331557715,1720501838798,-155.27043915,0.00013989,2]
[331557717,1720501838807,-157.01453922,0.00013989,2]
[331557719,1720501838817,-265.22373563,0.00013989,2]
[331557721,1720501838827,-156.69679932,0.00013989,2]
[331557723,1720501838837,-150.5,0.0001399,7]
[331557725,1720501838847,-69049.8984648,0.00013992,2]
[331557727,1720501838856,-3842.3292112,0.00013992,2]
[331557729,1720501838866,-18346.59237653,0.00013992,2]
[331557732,1720501838887,-2951.06139217,0.00013992,2]
[331557735,1720501838903,-683.0,0.00013999,2]
[331557737,1720501838913,-181.52155115,0.00013999,2]
[331557739,1720501838923,-2131.43903599,0.00013999,2]
[331557741,1720501838932,-295707.5140514,0.00013999,2]
[331557743,1720501838942,-338.96356715,0.00013999,2]
[331557745,1720501838952,-501.05002621,0.00013999,2]
[331557747,1720501838961,-203.94613138,0.00013999,2]
[331557749,1720501838971,-156.12125271,0.00013999,2]
[331557750,1720501838991,-264.77897746,0.00013999,2]
[331557751,1720501839002,-276.71293214,0.00013999,2]
[331557752,1720501839013,-155.60896522,0.00013999,2]
[331557753,1720501839024,-155.71059302,0.00013999,2]
[331557754,1720501839035,-317.01872188,0.00013999,2]
[331557756,1720501839045,-889.59201717,0.00013999,2]
[331557758,1720501839055,-155.0,0.00013999,2]
[331557760,1720501839065,-380.68418718,0.00013999,2]
[331557762,1720501839075,-636108.37561469,0.00014,2]
[331557765,1720501839088,-1083099.33864,0.00014,2]
[331557767,1720501839100,-803.325,0.00014,2]
[331557769,1720501839114,-7466.09757275,0.00014,2]
[331557772,1720501839132,-282.5,0.00014,2]
[331557985,1720501841326,-2680.7,0.00013574,2]
[331557987,1720501841338,-1392.54925059,0.00013574,2]
[331558117,1720501842601,-396.19126141,0.00013574,2]
[331558120,1720501842615,-2914.63360816,0.00013574,2]
[331558124,1720501842629,-272950.02068813,0.00013574,2]
[331558127,1720501842641,-328.89692869,0.00013899,2]
[331558130,1720501842653,-378135.06405799,0.00014,2]
[331558133,1720501842664,-1000.0,0.00014,2]
[331558279,1720501844336,-250.0,0.00014,2]
[331558285,1720501844385,-252.2,0.00014,2]
[331558289,1720501844414,-83453.80434326,0.00014,2]
[331558293,1720501844438,-501.11187076,0.00014,2]
[331558295,1720501844452,-535.85161746,0.00014,2]
[331558299,1720501844474,-252.21590349,0.00013989,2]
[331558301,1720501844485,-5209.03989651,0.00014,2]
[331558303,1720501844496,-1101.1,0.00014,2]
[331558305,1720501844518,-3430.84479692,0.00014,2]
[331558307,1720501844537,-7390.50773436,0.00014,2]
[331558326,1720501844706,-356.52159199,0.00014,2]
[331558328,1720501844718,-87444.58358726,0.00014,2]